[Event "Titled Tuesday Blitz May 11 2021"]
[White "Mohammad Nubairshah Shaikh"]
[Black "Buscar, Michael"]
[WhiteFideId "5053196"]
[BlackFideId "2603616"]
[WhiteElo "2382"]
[BlackElo "2010"]
[Result "1-0"]
[Round "01"]
[TimeControl "180+1"]
[Date "2021.05.11"]
[WhiteClock "0:02:06"]
[BlackClock "0:00:55"]

1. c4 {[%clk 0:02:52]}  Nf6 {[%clk 0:02:59]} 2. Nf3 {[%clk 0:02:48]}  g6 {[%clk 0:02:56]} 3. b3 {[%clk 0:02:48]}  Bg7 {[%clk 0:02:56]} 4. Bb2 {[%clk 0:02:48]}  b6 {[%clk 0:02:53]} 5. g3 {[%clk 0:02:46]}  Bb7 {[%clk 0:02:53]} 6. Bg2 {[%clk 0:02:47]}  c5 {[%clk 0:02:53]} 7. O-O {[%clk 0:02:47]}  d6 {[%clk 0:02:50]} 8. d4 {[%clk 0:02:46]}  cxd4 {[%clk 0:02:49]} 9. Qxd4 {[%clk 0:02:47]}  Nbd7 {[%clk 0:02:48]} 10. Rd1 {[%clk 0:02:46]}  O-O {[%clk 0:02:43]} 11. Na3 {[%clk 0:02:45]}  a6 {[%clk 0:02:42]} 12. Rac1 {[%clk 0:02:45]}  Rc8 {[%clk 0:02:41]} 13. h4 {[%clk 0:02:40]}  Nh5 {[%clk 0:02:37]} 14. Qd2 {[%clk 0:02:40]}  Nc5 {[%clk 0:02:32]} 15. Bxg7 {[%clk 0:02:39]}  Nxg7 {[%clk 0:02:32]} 16. Nc2 {[%clk 0:02:37]}  Ne4 {[%clk 0:02:18]} 17. Qf4 {[%clk 0:02:31]}  Ne6 {[%clk 0:02:15]} 18. Qe3 {[%clk 0:02:29]}  Qc7 {[%clk 0:02:08]} 19. Ncd4 {[%clk 0:02:29]}  Qc5 {[%clk 0:01:44]} 20. Nxe6 {[%clk 0:02:19]}  Qxe3 {[%clk 0:01:42]} 21. fxe3 {[%clk 0:02:19]}  fxe6 {[%clk 0:01:36]} 22. Ng5 {[%clk 0:02:20]}  d5 {[%clk 0:01:16]} 23. Bxe4 {[%clk 0:02:17]}  dxe4 {[%clk 0:01:14]} 24. Rd7 {[%clk 0:02:18]}  Bd5 {[%clk 0:01:04]} 25. Rd1 {[%clk 0:02:14]}  h6 {[%clk 0:01:04]} 26. Nh3 {[%clk 0:02:10]}  Bc6 {[%clk 0:01:03]} 27. Rxe7 {[%clk 0:02:10]}  Rcd8 {[%clk 0:01:03]} 28. Rxd8 {[%clk 0:02:07]}  Rxd8 {[%clk 0:01:03]} 29. Rxe6 {[%clk 0:02:07]}  Rd1+ {[%clk 0:00:59]} 30. Kf2 {[%clk 0:02:06]}  Bd7 {[%clk 0:00:59]} 31. Rxg6+ {[%clk 0:02:07]}  Kh7 {[%clk 0:00:55]} 32. Nf4 {[%clk 0:02:08]}  b5 {[%clk 0:00:55]} 33. Rxa6 {[%clk 0:02:06]}  bxc4 {[%clk 0:00:55]} 34. bxc4 {[%clk 0:02:07]}  Rc1 {[%clk 0:00:55]} 35. Ra7 {[%clk 0:02:06]} 1-0


[Site "https://www.chess.com"]

[Event "Titled Tuesday Blitz May 11 2021"]
[White "Narayanan.S.L"]
[Black "Korkmaz, Necmettin"]
[WhiteFideId "5058422"]
[BlackFideId "6303285"]
[WhiteElo "2617"]
[BlackElo "2094"]
[Result "1-0"]
[Round "01"]
[TimeControl "180+1"]
[Date "2021.05.11"]
[WhiteClock "0:02:40"]
[BlackClock "0:02:28"]

1. e4 {[%clk 0:02:58]}  e6 {[%clk 0:02:59]} 2. d4 {[%clk 0:02:57]}  d5 {[%clk 0:02:59]} 3. Bd3 {[%clk 0:02:57]}  Nf6 {[%clk 0:02:55]} 4. e5 {[%clk 0:02:57]}  Nfd7 {[%clk 0:02:55]} 5. c3 {[%clk 0:02:57]}  c5 {[%clk 0:02:56]} 6. Nf3 {[%clk 0:02:57]}  Nc6 {[%clk 0:02:57]} 7. O-O {[%clk 0:02:57]}  Qb6 {[%clk 0:02:56]} 8. Bc2 {[%clk 0:02:58]}  cxd4 {[%clk 0:02:56]} 9. cxd4 {[%clk 0:02:57]}  Nb4 {[%clk 0:02:56]} 10. Bb3 {[%clk 0:02:56]}  a5 {[%clk 0:02:56]} 11. a3 {[%clk 0:02:56]}  Nc6 {[%clk 0:02:56]} 12. Nc3 {[%clk 0:02:56]}  a4 {[%clk 0:02:57]} 13. Nxa4 {[%clk 0:02:56]}  Qa7 {[%clk 0:02:57]} 14. Nc3 {[%clk 0:02:56]}  Be7 {[%clk 0:02:55]} 15. h4 {[%clk 0:02:50]}  h6 {[%clk 0:02:54]} 16. h5 {[%clk 0:02:50]}  O-O {[%clk 0:02:54]} 17. Be3 {[%clk 0:02:50]}  Qb8 {[%clk 0:02:54]} 18. Bc2 {[%clk 0:02:50]}  Rd8 {[%clk 0:02:52]} 19. Qd3 {[%clk 0:02:49]}  Nf8 {[%clk 0:02:53]} 20. Rfe1 {[%clk 0:02:50]}  b6 {[%clk 0:02:53]} 21. Qd2 {[%clk 0:02:50]}  Ba6 {[%clk 0:02:53]} 22. Bxh6 {[%clk 0:02:50]}  gxh6 {[%clk 0:02:49]} 23. Qxh6 {[%clk 0:02:51]}  Rd7 {[%clk 0:02:41]} 24. Ng5 {[%clk 0:02:51]}  Bxg5 {[%clk 0:02:40]} 25. Qxg5+ {[%clk 0:02:51]}  Kh8 {[%clk 0:02:41]} 26. Qh6+ {[%clk 0:02:51]}  Kg8 {[%clk 0:02:41]} 27. Re3 {[%clk 0:02:52]}  f5 {[%clk 0:02:37]} 28. exf6 {[%clk 0:02:48]}  Kf7 {[%clk 0:02:36]} 29. Bg6+ {[%clk 0:02:47]}  Kg8 {[%clk 0:02:33]} 30. Rg3 {[%clk 0:02:43]}  Nxd4 {[%clk 0:02:32]} 31. f7+ {[%clk 0:02:38]}  Rxf7 {[%clk 0:02:30]} 32. Bh7+ {[%clk 0:02:39]}  Kh8 {[%clk 0:02:28]} 33. Rg8# {[%clk 0:02:40]} 1-0


[Site "https://www.chess.com"]

[Event "Titled Tuesday Blitz May 11 2021"]
[White "Neelotpal, Das"]
[Black "Babazada, Khazar"]
[WhiteFideId "5003512"]
[BlackFideId "13413554"]
[WhiteElo "2427"]
[BlackElo "2344"]
[Result "1-0"]
[Round "01"]
[TimeControl "180+1"]
[Date "2021.05.11"]
[WhiteClock "0:01:05"]
[BlackClock "0:00:01"]

1. e4 {[%clk 0:03:00]}  d6 {[%clk 0:02:59]} 2. Nf3 {[%clk 0:02:59]}  Nf6 {[%clk 0:02:57]} 3. Nc3 {[%clk 0:02:59]}  c5 {[%clk 0:02:53]} 4. d4 {[%clk 0:02:59]}  cxd4 {[%clk 0:02:52]} 5. Nxd4 {[%clk 0:02:59]}  Nc6 {[%clk 0:02:50]} 6. Bg5 {[%clk 0:02:58]}  Bd7 {[%clk 0:02:47]} 7. Bxf6 {[%clk 0:02:57]}  gxf6 {[%clk 0:02:46]} 8. Be2 {[%clk 0:02:57]}  e6 {[%clk 0:02:43]} 9. O-O {[%clk 0:02:56]}  a6 {[%clk 0:02:39]} 10. Qd2 {[%clk 0:02:55]}  h5 {[%clk 0:02:36]} 11. Rad1 {[%clk 0:02:51]}  Rc8 {[%clk 0:02:35]} 12. Nb3 {[%clk 0:02:50]}  h4 {[%clk 0:02:30]} 13. h3 {[%clk 0:02:49]}  Rg8 {[%clk 0:02:24]} 14. Kh1 {[%clk 0:02:48]}  Rg5 {[%clk 0:02:18]} 15. f4 {[%clk 0:02:48]}  Rg3 {[%clk 0:02:16]} 16. Bf3 {[%clk 0:02:46]}  b5 {[%clk 0:02:02]} 17. Ne2 {[%clk 0:02:45]}  Rg8 {[%clk 0:01:59]} 18. c3 {[%clk 0:02:33]}  Qb6 {[%clk 0:01:54]} 19. Qe1 {[%clk 0:02:32]}  Rh8 {[%clk 0:01:51]} 20. Ned4 {[%clk 0:02:32]}  Be7 {[%clk 0:01:50]} 21. a3 {[%clk 0:02:31]}  a5 {[%clk 0:01:48]} 22. Qe2 {[%clk 0:02:30]}  a4 {[%clk 0:01:45]} 23. Na1 {[%clk 0:02:28]}  Na5 {[%clk 0:01:39]} 24. Nac2 {[%clk 0:02:28]}  Nc4 {[%clk 0:01:38]} 25. Nb4 {[%clk 0:02:28]}  Rc5 {[%clk 0:01:34]} 26. f5 {[%clk 0:02:26]}  e5 {[%clk 0:01:27]} 27. Ndc2 {[%clk 0:02:20]}  Qb7 {[%clk 0:01:02]} 28. Ne3 {[%clk 0:02:18]}  Rg8 {[%clk 0:00:55]} 29. Nbd5 {[%clk 0:02:14]}  Bc6 {[%clk 0:00:50]} 30. Rfe1 {[%clk 0:02:03]}  Rg3 {[%clk 0:00:44]} 31. Nf1 {[%clk 0:01:58]}  Rg5 {[%clk 0:00:41]} 32. Bg4 {[%clk 0:01:55]}  Kf8 {[%clk 0:00:39]} 33. Qf2 {[%clk 0:01:53]}  Bxd5 {[%clk 0:00:36]} 34. exd5 {[%clk 0:01:53]}  Bd8 {[%clk 0:00:36]} 35. Qxh4 {[%clk 0:01:51]}  Kg7 {[%clk 0:00:36]} 36. Ng3 {[%clk 0:01:51]}  Qb8 {[%clk 0:00:28]} 37. Re2 {[%clk 0:01:49]}  Be7 {[%clk 0:00:26]} 38. Ne4 {[%clk 0:01:49]}  Rc8 {[%clk 0:00:21]} 39. Nxg5 {[%clk 0:01:46]}  fxg5 {[%clk 0:00:22]} 40. f6+ {[%clk 0:01:46]}  Bxf6 {[%clk 0:00:20]} 41. Qf2 {[%clk 0:01:46]}  Rh8 {[%clk 0:00:19]} 42. Rf1 {[%clk 0:01:47]}  Rh6 {[%clk 0:00:16]} 43. Bf5 {[%clk 0:01:44]}  Nb6 {[%clk 0:00:14]} 44. Be4 {[%clk 0:01:43]}  Qb7 {[%clk 0:00:15]} 45. Qf3 {[%clk 0:01:41]}  Nd7 {[%clk 0:00:15]} 46. Ref2 {[%clk 0:01:41]}  Nc5 {[%clk 0:00:15]} 47. Bb1 {[%clk 0:01:38]}  Kf8 {[%clk 0:00:14]} 48. Qg4 {[%clk 0:01:34]}  Ke7 {[%clk 0:00:14]} 49. Be4 {[%clk 0:01:26]}  Qb6 {[%clk 0:00:12]} 50. Qe2 {[%clk 0:01:21]}  Nd7 {[%clk 0:00:12]} 51. Bf5 {[%clk 0:01:21]}  Nf8 {[%clk 0:00:11]} 52. Bg4 {[%clk 0:01:20]}  Nh7 {[%clk 0:00:11]} 53. Qd3 {[%clk 0:01:19]}  Qc5 {[%clk 0:00:11]} 54. Rf3 {[%clk 0:01:17]}  Nf8 {[%clk 0:00:10]} 55. Qf5 {[%clk 0:01:15]}  Qc4 {[%clk 0:00:08]} 56. Qc8 {[%clk 0:01:14]}  Qxc8 {[%clk 0:00:07]} 57. Bxc8 {[%clk 0:01:14]}  e4 {[%clk 0:00:06]} 58. Re3 {[%clk 0:01:11]}  Be5 {[%clk 0:00:06]} 59. Rxe4 {[%clk 0:01:10]}  Nh7 {[%clk 0:00:03]} 60. Ba6 {[%clk 0:01:08]}  Nf6 {[%clk 0:00:03]} 61. Ree1 {[%clk 0:01:06]}  Kd8 {[%clk 0:00:01]} 62. Bxb5 {[%clk 0:01:05]} 1-0


[Site "https://www.chess.com"]

[Event "Titled Tuesday Blitz May 11 2021"]
[White "Petriashvili, Nikoloz"]
[Black "Gracia Alvarez, Gerardo Antonio"]
[WhiteFideId "13611216"]
[BlackFideId "5109124"]
[WhiteElo "2430"]
[BlackElo "2148"]
[Result "1/2-1/2"]
[Round "01"]
[TimeControl "180+1"]
[Date "2021.05.11"]
[WhiteClock "0:00:57"]
[BlackClock "0:00:05"]

1. e4 {[%clk 0:03:00]}  c5 {[%clk 0:02:59]} 2. Nf3 {[%clk 0:03:01]}  Nc6 {[%clk 0:03:00]} 3. d4 {[%clk 0:03:01]}  cxd4 {[%clk 0:03:00]} 4. Nxd4 {[%clk 0:03:02]}  g6 {[%clk 0:03:01]} 5. c4 {[%clk 0:03:02]}  Nf6 {[%clk 0:03:01]} 6. Nc3 {[%clk 0:03:02]}  d6 {[%clk 0:03:01]} 7. Be2 {[%clk 0:03:01]}  Nxd4 {[%clk 0:03:01]} 8. Qxd4 {[%clk 0:03:02]}  Bg7 {[%clk 0:03:02]} 9. Be3 {[%clk 0:03:02]}  O-O {[%clk 0:03:02]} 10. Qd2 {[%clk 0:03:02]}  a5 {[%clk 0:03:02]} 11. O-O {[%clk 0:03:02]}  a4 {[%clk 0:02:59]} 12. Rac1 {[%clk 0:03:02]}  Qa5 {[%clk 0:02:59]} 13. Rfd1 {[%clk 0:02:56]}  Be6 {[%clk 0:02:59]} 14. f3 {[%clk 0:02:56]}  Rfc8 {[%clk 0:02:59]} 15. Nb5 {[%clk 0:02:56]}  Qxd2 {[%clk 0:02:51]} 16. Rxd2 {[%clk 0:02:56]}  Nd7 {[%clk 0:02:48]} 17. Nd4 {[%clk 0:02:53]}  Nc5 {[%clk 0:02:38]} 18. Kf2 {[%clk 0:02:52]}  Bd7 {[%clk 0:02:33]} 19. h4 {[%clk 0:02:49]}  h5 {[%clk 0:02:32]} 20. Rcd1 {[%clk 0:02:44]}  Ne6 {[%clk 0:02:19]} 21. g3 {[%clk 0:02:41]}  Nxd4 {[%clk 0:02:18]} 22. Bxd4 {[%clk 0:02:42]}  Be6 {[%clk 0:02:17]} 23. Bxg7 {[%clk 0:02:24]}  Kxg7 {[%clk 0:02:18]} 24. Rd4 {[%clk 0:02:25]}  Rc5 {[%clk 0:02:12]} 25. Ke3 {[%clk 0:02:25]}  Rac8 {[%clk 0:02:11]} 26. b3 {[%clk 0:02:24]}  axb3 {[%clk 0:02:10]} 27. axb3 {[%clk 0:02:25]}  Ra5 {[%clk 0:02:08]} 28. R4d3 {[%clk 0:02:10]}  b5 {[%clk 0:02:00]} 29. b4 {[%clk 0:01:59]}  Ra4 {[%clk 0:01:52]} 30. cxb5 {[%clk 0:01:58]}  Rxb4 {[%clk 0:01:51]} 31. Rd4 {[%clk 0:01:57]}  Rb3+ {[%clk 0:01:45]} 32. R4d3 {[%clk 0:01:49]}  Rxb5 {[%clk 0:01:42]} 33. Rxd6 {[%clk 0:01:45]}  Rb3+ {[%clk 0:01:39]} 34. R6d3 {[%clk 0:01:44]}  Rcc3 {[%clk 0:01:35]} 35. Rxc3 {[%clk 0:01:44]}  Rxc3+ {[%clk 0:01:36]} 36. Kd4 {[%clk 0:01:44]}  Rc2 {[%clk 0:01:33]} 37. Ke3 {[%clk 0:01:41]}  Rc3+ {[%clk 0:01:33]} 38. Kd2 {[%clk 0:01:41]}  Ra3 {[%clk 0:01:33]} 39. Rc1 {[%clk 0:01:40]}  Ra2+ {[%clk 0:01:33]} 40. Ke3 {[%clk 0:01:40]}  Ra3+ {[%clk 0:01:33]} 41. Kf4 {[%clk 0:01:39]}  Ra2 {[%clk 0:01:33]} 42. Bb5 {[%clk 0:01:39]}  Rb2 {[%clk 0:01:25]} 43. Ba6 {[%clk 0:01:38]}  Ra2 {[%clk 0:01:20]} 44. Bb7 {[%clk 0:01:36]}  Rb2 {[%clk 0:01:19]} 45. Rc7 {[%clk 0:01:35]}  Kf8 {[%clk 0:01:13]} 46. Ba6 {[%clk 0:01:25]}  Rb3 {[%clk 0:01:08]} 47. Be2 {[%clk 0:01:17]}  Rb2 {[%clk 0:01:07]} 48. Ke3 {[%clk 0:01:16]}  Rb3+ {[%clk 0:01:08]} 49. Bd3 {[%clk 0:01:16]}  Ra3 {[%clk 0:01:02]} 50. Kd4 {[%clk 0:01:14]}  Ra4+ {[%clk 0:01:00]} 51. Ke3 {[%clk 0:01:13]}  Ra3 {[%clk 0:01:01]} 52. f4 {[%clk 0:01:13]}  f5 {[%clk 0:00:55]} 53. Kd4 {[%clk 0:01:11]}  fxe4 {[%clk 0:00:46]} 54. Bxe4 {[%clk 0:01:12]}  Rxg3 {[%clk 0:00:37]} 55. Ke5 {[%clk 0:01:12]}  Bf5 {[%clk 0:00:24]} 56. Bxf5 {[%clk 0:01:09]}  gxf5 {[%clk 0:00:25]} 57. Kxf5 {[%clk 0:01:10]}  Rg4 {[%clk 0:00:25]} 58. Rc4 {[%clk 0:01:10]}  Rxh4 {[%clk 0:00:24]} 59. Kg6 {[%clk 0:01:05]}  Rg4+ {[%clk 0:00:20]} 60. Kxh5 {[%clk 0:01:05]}  Rg2 {[%clk 0:00:19]} 61. Rc5 {[%clk 0:01:04]}  Kf7 {[%clk 0:00:19]} 62. Rf5+ {[%clk 0:01:04]}  Ke6 {[%clk 0:00:17]} 63. Ra5 {[%clk 0:01:05]}  Kf6 {[%clk 0:00:15]} 64. Kh4 {[%clk 0:01:03]}  e6 {[%clk 0:00:14]} 65. Rc5 {[%clk 0:01:02]}  Rg7 {[%clk 0:00:13]} 66. Kh3 {[%clk 0:01:01]}  Rg8 {[%clk 0:00:11]} 67. Rh5 {[%clk 0:00:59]}  Rg7 {[%clk 0:00:09]} 68. Rh8 {[%clk 0:00:59]}  Rg6 {[%clk 0:00:08]} 69. Rf8+ {[%clk 0:00:59]}  Ke7 {[%clk 0:00:08]} 70. Rb8 {[%clk 0:00:59]}  Kf6 {[%clk 0:00:08]} 71. Kh4 {[%clk 0:00:58]}  Kf5 {[%clk 0:00:07]} 72. Rf8+ {[%clk 0:00:58]}  Ke4 {[%clk 0:00:08]} 73. Kh5 {[%clk 0:00:58]}  Rg2 {[%clk 0:00:07]} 74. Rf6 {[%clk 0:00:59]}  Rg1 {[%clk 0:00:06]} 75. Kh4 {[%clk 0:00:57]}  Rg2 {[%clk 0:00:05]} 76. Kh3 {[%clk 0:00:58]}  Rg7 {[%clk 0:00:05]} 77. Rf8 {[%clk 0:00:57]}  Rg6 {[%clk 0:00:04]} 78. Rf7 {[%clk 0:00:57]}  Rg8 {[%clk 0:00:04]} 79. Kh4 {[%clk 0:00:57]}  Rg6 {[%clk 0:00:05]} 80. Rf8 {[%clk 0:00:57]}  Rg1 {[%clk 0:00:05]} 81. Kh3 {[%clk 0:00:57]}  Rg7 {[%clk 0:00:05]} 82. Kh2 {[%clk 0:00:58]}  Rg6 {[%clk 0:00:05]} 83. Rf7 {[%clk 0:00:57]}  Rh6+ {[%clk 0:00:05]} 84. Kg3 {[%clk 0:00:57]}  Rg6+ {[%clk 0:00:05]} 85. Kh4 {[%clk 0:00:57]}  Rg1 {[%clk 0:00:05]} 86. Rf6 {[%clk 0:00:57]}  Rg7 {[%clk 0:00:05]} 87. Kh5 {[%clk 0:00:56]}  Rg1 {[%clk 0:00:04]} 88. Rf7 {[%clk 0:00:57]}  Rg8 {[%clk 0:00:04]} 89. Kh4 {[%clk 0:00:57]}  Rg1 {[%clk 0:00:05]} 90. Rf6 {[%clk 0:00:57]} 1/2-1/2


[Site "https://www.chess.com"]

[Event "Titled Tuesday Blitz May 11 2021"]
[White "Plotnikov, Pavel"]
[Black "Wagner, Dennis"]
[WhiteFideId "4170342"]
[BlackFideId "24650684"]
[WhiteElo "2298"]
[BlackElo "2355"]
[Result "0-1"]
[Round "01"]
[TimeControl "180+1"]
[Date "2021.05.11"]
[WhiteClock "0:00:56"]
[BlackClock "0:01:15"]

1. e4 {[%clk 0:02:56]}  e5 {[%clk 0:02:59]} 2. Nf3 {[%clk 0:02:55]}  Nc6 {[%clk 0:03:00]} 3. Nc3 {[%clk 0:02:54]}  Nf6 {[%clk 0:03:00]} 4. Be2 {[%clk 0:02:54]}  d5 {[%clk 0:02:59]} 5. exd5 {[%clk 0:02:53]}  Nxd5 {[%clk 0:03:00]} 6. O-O {[%clk 0:02:53]}  Nxc3 {[%clk 0:03:00]} 7. bxc3 {[%clk 0:02:53]}  e4 {[%clk 0:03:01]} 8. Ne1 {[%clk 0:02:52]}  Bd6 {[%clk 0:03:00]} 9. f3 {[%clk 0:02:52]}  Bf5 {[%clk 0:02:55]} 10. fxe4 {[%clk 0:02:48]}  Bxe4 {[%clk 0:02:56]} 11. Bf3 {[%clk 0:02:42]}  Bxf3 {[%clk 0:02:34]} 12. Qxf3 {[%clk 0:02:40]}  O-O {[%clk 0:02:35]} 13. d4 {[%clk 0:02:39]}  Rb8 {[%clk 0:02:28]} 14. Nd3 {[%clk 0:02:37]}  Ne7 {[%clk 0:02:23]} 15. Rb1 {[%clk 0:02:36]}  b6 {[%clk 0:02:22]} 16. Bf4 {[%clk 0:02:36]}  Ng6 {[%clk 0:02:17]} 17. Be3 {[%clk 0:02:14]}  Rc8 {[%clk 0:02:13]} 18. g3 {[%clk 0:02:10]}  Qd7 {[%clk 0:02:06]} 19. Kg2 {[%clk 0:01:57]}  Qa4 {[%clk 0:02:03]} 20. Rf2 {[%clk 0:01:54]}  Qxa2 {[%clk 0:01:59]} 21. Rbf1 {[%clk 0:01:53]}  Qe6 {[%clk 0:01:55]} 22. h4 {[%clk 0:01:51]}  h6 {[%clk 0:01:52]} 23. h5 {[%clk 0:01:49]}  Ne7 {[%clk 0:01:51]} 24. Re2 {[%clk 0:01:41]}  Qd5 {[%clk 0:01:49]} 25. Bd2 {[%clk 0:01:27]}  Qxf3+ {[%clk 0:01:48]} 26. Kxf3 {[%clk 0:01:27]}  a5 {[%clk 0:01:39]} 27. c4 {[%clk 0:01:27]}  Nc6 {[%clk 0:01:38]} 28. c3 {[%clk 0:01:26]}  Rfe8 {[%clk 0:01:37]} 29. Rg2 {[%clk 0:01:25]}  a4 {[%clk 0:01:32]} 30. g4 {[%clk 0:01:22]}  Na5 {[%clk 0:01:31]} 31. g5 {[%clk 0:01:20]}  Nxc4 {[%clk 0:01:30]} 32. Bc1 {[%clk 0:01:20]}  hxg5 {[%clk 0:01:30]} 33. Rxg5 {[%clk 0:01:20]}  f6 {[%clk 0:01:26]} 34. Rg6 {[%clk 0:01:19]}  Kf7 {[%clk 0:01:26]} 35. Rfg1 {[%clk 0:01:19]}  Bf8 {[%clk 0:01:26]} 36. h6 {[%clk 0:01:15]}  gxh6 {[%clk 0:01:26]} 37. Bxh6 {[%clk 0:01:16]}  Bxh6 {[%clk 0:01:25]} 38. Rxh6 {[%clk 0:01:16]}  Re3+ {[%clk 0:01:25]} 39. Kf4 {[%clk 0:01:15]}  Rxd3 {[%clk 0:01:25]} 40. Rh7+ {[%clk 0:01:10]}  Ke6 {[%clk 0:01:25]} 41. Re1+ {[%clk 0:01:09]}  Kd6 {[%clk 0:01:24]} 42. Rf7 {[%clk 0:01:05]}  Rxc3 {[%clk 0:01:21]} 43. Rxf6+ {[%clk 0:01:04]}  Kd5 {[%clk 0:01:21]} 44. Rf5+ {[%clk 0:00:56]}  Kc6 {[%clk 0:01:15]} 0-1


[Site "https://www.chess.com"]

[Event "Titled Tuesday Blitz May 11 2021"]
[White "Purtseladze, Maka"]
[Black "Yoo, Christopher Woojin"]
[WhiteFideId "13602659"]
[BlackFideId "30909694"]
[WhiteElo "2178"]
[BlackElo "2009"]
[Result "0-1"]
[Round "01"]
[TimeControl "180+1"]
[Date "2021.05.11"]
[WhiteClock "0:00:01"]
[BlackClock "0:00:04"]

1. d4 {[%clk 0:03:00]}  Nf6 {[%clk 0:02:58]} 2. Bg5 {[%clk 0:03:00]}  Ne4 {[%clk 0:02:53]} 3. Bf4 {[%clk 0:02:59]}  d5 {[%clk 0:02:50]} 4. e3 {[%clk 0:02:59]}  g6 {[%clk 0:02:47]} 5. Bd3 {[%clk 0:02:58]}  Nf6 {[%clk 0:02:34]} 6. Nf3 {[%clk 0:02:54]}  Bg7 {[%clk 0:02:34]} 7. h3 {[%clk 0:02:53]}  O-O {[%clk 0:02:34]} 8. c4 {[%clk 0:02:52]}  c5 {[%clk 0:02:32]} 9. Nc3 {[%clk 0:02:44]}  cxd4 {[%clk 0:02:09]} 10. exd4 {[%clk 0:02:43]}  Nc6 {[%clk 0:02:08]} 11. O-O {[%clk 0:02:42]}  Nb4 {[%clk 0:01:56]} 12. Be2 {[%clk 0:02:36]}  dxc4 {[%clk 0:01:50]} 13. Bxc4 {[%clk 0:02:37]}  Nbd5 {[%clk 0:01:45]} 14. Be5 {[%clk 0:02:36]}  Be6 {[%clk 0:01:39]} 15. Qb3 {[%clk 0:02:34]}  Nxc3 {[%clk 0:01:33]} 16. Bxe6 {[%clk 0:02:07]}  Ncd5 {[%clk 0:01:11]} 17. Bxd5 {[%clk 0:01:58]}  Qxd5 {[%clk 0:01:10]} 18. Rac1 {[%clk 0:01:53]}  Qxb3 {[%clk 0:01:07]} 19. axb3 {[%clk 0:01:53]}  Nd5 {[%clk 0:01:08]} 20. Rc5 {[%clk 0:01:50]}  Rfd8 {[%clk 0:01:07]} 21. Rfc1 {[%clk 0:01:48]}  e6 {[%clk 0:01:07]} 22. g3 {[%clk 0:00:57]}  Bh6 {[%clk 0:00:55]} 23. R1c4 {[%clk 0:00:52]}  f6 {[%clk 0:00:55]} 24. Bc7 {[%clk 0:00:52]}  Rd7 {[%clk 0:00:55]} 25. g4 {[%clk 0:00:49]}  Bf8 {[%clk 0:00:52]} 26. Bg3 {[%clk 0:00:39]}  Bxc5 {[%clk 0:00:51]} 27. dxc5 {[%clk 0:00:40]}  Rc8 {[%clk 0:00:51]} 28. b4 {[%clk 0:00:40]}  e5 {[%clk 0:00:51]} 29. b5 {[%clk 0:00:35]}  Rdc7 {[%clk 0:00:50]} 30. b4 {[%clk 0:00:35]}  g5 {[%clk 0:00:40]} 31. Nd2 {[%clk 0:00:33]}  Kf7 {[%clk 0:00:32]} 32. Ne4 {[%clk 0:00:33]}  Ke6 {[%clk 0:00:30]} 33. Nd6 {[%clk 0:00:33]}  Rd8 {[%clk 0:00:25]} 34. Nf5 {[%clk 0:00:33]}  Ne7 {[%clk 0:00:22]} 35. Ne3 {[%clk 0:00:32]}  Rd3 {[%clk 0:00:15]} 36. Kg2 {[%clk 0:00:24]}  Nd5 {[%clk 0:00:15]} 37. Nf5 {[%clk 0:00:24]}  Rc3 {[%clk 0:00:11]} 38. Re4 {[%clk 0:00:23]}  Nf4+ {[%clk 0:00:10]} 39. Bxf4 {[%clk 0:00:22]}  gxf4 {[%clk 0:00:11]} 40. Re1 {[%clk 0:00:17]}  Rd7 {[%clk 0:00:09]} 41. Ra1 {[%clk 0:00:11]}  Rc4 {[%clk 0:00:07]} 42. Rxa7 {[%clk 0:00:09]}  Rxb4 {[%clk 0:00:07]} 43. b6 {[%clk 0:00:07]}  Rb5 {[%clk 0:00:06]} 44. c6 {[%clk 0:00:06]}  bxc6 {[%clk 0:00:06]} 45. Ra8 {[%clk 0:00:06]}  Rxb6 {[%clk 0:00:05]} 46. Re8+ {[%clk 0:00:06]}  Kf7 {[%clk 0:00:05]} 47. Rh8 {[%clk 0:00:06]}  Ke6 {[%clk 0:00:05]} 48. Re8+ {[%clk 0:00:06]}  Kd5 {[%clk 0:00:05]} 49. Ne7+ {[%clk 0:00:05]}  Ke4 {[%clk 0:00:04]} 50. Ng8 {[%clk 0:00:05]}  Rd6 {[%clk 0:00:03]} 51. Rf8 {[%clk 0:00:05]}  c5 {[%clk 0:00:02]} 52. Nh6 {[%clk 0:00:06]}  c4 {[%clk 0:00:02]} 53. Nf5 {[%clk 0:00:07]}  Rdc6 {[%clk 0:00:02]} 54. Rd8 {[%clk 0:00:06]}  f3+ {[%clk 0:00:03]} 55. Kg3 {[%clk 0:00:05]}  c3 {[%clk 0:00:04]} 56. Kh4 {[%clk 0:00:01]}  Kf4 {[%clk 0:00:04]} 0-1


[Site "https://www.chess.com"]

[Event "Titled Tuesday Blitz May 11 2021"]
[White "Quparadze, Giga"]
[Black "Krasilnikov, Evgeni"]
[WhiteFideId "13602250"]
[BlackFideId "4139739"]
[WhiteElo "2658"]
[BlackElo "2357"]
[Result "1-0"]
[Round "01"]
[TimeControl "180+1"]
[Date "2021.05.11"]
[WhiteClock "0:01:27"]
[BlackClock "0:00:24"]

1. e4 {[%clk 0:03:00]}  c6 {[%clk 0:02:59]} 2. d4 {[%clk 0:03:00]}  d5 {[%clk 0:02:59]} 3. Nc3 {[%clk 0:03:01]}  dxe4 {[%clk 0:02:58]} 4. Nxe4 {[%clk 0:03:01]}  Nf6 {[%clk 0:02:59]} 5. Nxf6+ {[%clk 0:03:01]}  exf6 {[%clk 0:03:00]} 6. c3 {[%clk 0:03:01]}  Bd6 {[%clk 0:02:59]} 7. Bd3 {[%clk 0:03:01]}  O-O {[%clk 0:02:58]} 8. Qc2 {[%clk 0:03:01]}  Re8+ {[%clk 0:02:57]} 9. Ne2 {[%clk 0:03:01]}  h5 {[%clk 0:02:57]} 10. O-O {[%clk 0:03:01]}  Nd7 {[%clk 0:02:50]} 11. Ng3 {[%clk 0:02:59]}  Qc7 {[%clk 0:02:40]} 12. Nxh5 {[%clk 0:02:51]}  Bxh2+ {[%clk 0:02:38]} 13. Kh1 {[%clk 0:02:50]}  Bd6 {[%clk 0:02:38]} 14. Bc4 {[%clk 0:02:50]}  Nf8 {[%clk 0:02:35]} 15. Bh6 {[%clk 0:02:50]}  Be6 {[%clk 0:02:21]} 16. Nxg7 {[%clk 0:02:13]}  Bxc4 {[%clk 0:02:17]} 17. Nxe8 {[%clk 0:02:13]}  Rxe8 {[%clk 0:02:16]} 18. Rfe1 {[%clk 0:02:13]}  Rxe1+ {[%clk 0:01:58]} 19. Rxe1 {[%clk 0:02:14]}  Bf4 {[%clk 0:01:57]} 20. Bxf4 {[%clk 0:01:50]}  Qxf4 {[%clk 0:01:56]} 21. Kg1 {[%clk 0:01:49]}  Ne6 {[%clk 0:01:52]} 22. b3 {[%clk 0:01:47]}  Bd5 {[%clk 0:01:51]} 23. Qd3 {[%clk 0:01:37]}  Qg4 {[%clk 0:01:23]} 24. Qg3 {[%clk 0:01:36]}  Qxg3 {[%clk 0:01:22]} 25. fxg3 {[%clk 0:01:37]}  b5 {[%clk 0:01:22]} 26. Kf2 {[%clk 0:01:36]}  Ng5 {[%clk 0:01:12]} 27. Ke3 {[%clk 0:01:35]}  Bxg2 {[%clk 0:01:09]} 28. c4 {[%clk 0:01:35]}  bxc4 {[%clk 0:01:03]} 29. bxc4 {[%clk 0:01:36]}  Be4 {[%clk 0:00:57]} 30. Re2 {[%clk 0:01:36]}  Kg7 {[%clk 0:00:55]} 31. Rb2 {[%clk 0:01:36]}  a5 {[%clk 0:00:45]} 32. Rb6 {[%clk 0:01:35]}  a4 {[%clk 0:00:45]} 33. Ra6 {[%clk 0:01:34]}  Bc2 {[%clk 0:00:41]} 34. Rxc6 {[%clk 0:01:34]}  Bb1 {[%clk 0:00:37]} 35. Ra6 {[%clk 0:01:33]}  Bxa2 {[%clk 0:00:36]} 36. Rxa4 {[%clk 0:01:33]}  Bb1 {[%clk 0:00:36]} 37. d5 {[%clk 0:01:32]}  Bc2 {[%clk 0:00:35]} 38. Rb4 {[%clk 0:01:31]}  Kg6 {[%clk 0:00:30]} 39. c5 {[%clk 0:01:30]}  Bf5 {[%clk 0:00:27]} 40. c6 {[%clk 0:01:30]}  Bh3 {[%clk 0:00:24]} 41. Rb8 {[%clk 0:01:27]} 1-0


[Site "https://www.chess.com"]